bitfinex-derivatives/quotes_BTCF0:USTF0_20250129
["timestamp","ask_amount","ask_price","bid_price","bid_amount"]
[1738177061980,0.586259,102970.0,102960.0,0.30259884]
[1738177062180,0.586259,102970.0,102960.0,0.01514613]
[1738177062486,0.586259,102970.0,102960.0,0.20942413]
[1738177062895,0.586259,102970.0,102960.0,0.22428194]
[1738177063187,0.586259,102970.0,102960.0,0.20942413]
[1738177063780,0.586259,102970.0,102960.0,0.22428589]
[1738177064779,0.536259,102970.0,102960.0,0.22428589]
[1738177065886,0.506059,102970.0,102960.0,0.22428589]
[1738177066085,0.506059,102970.0,102960.0,0.36688589]
[1738177066290,0.506059,102970.0,102960.0,0.25688589]
[1738177066489,0.506059,102970.0,102960.0,0.58688589]
[1738177066890,0.506059,102970.0,102960.0,0.57202413]
[1738177067889,0.506059,102970.0,102960.0,0.24202413]
[1738177068092,0.506059,102970.0,102960.0,0.28202413]
[1738177068288,0.506059,102970.0,102960.0,0.25463612]
[1738177068686,0.506059,102970.0,102960.0,0.29463612]
[1738177070799,0.145259,102970.0,102960.0,0.29463612]
[1738177070981,0.001,102970.0,102960.0,0.29463612]
[1738177072488,0.001,102970.0,102960.0,0.65543612]
[1738177073994,0.001,102970.0,102960.0,0.29463612]
[1738177074293,0.001,102970.0,102960.0,0.58208883]
[1738177074784,0.001,102970.0,102960.0,0.94288883]
[1738177078093,0.58667913,102990.0,102960.0,0.74861083]
[1738177078289,0.58667913,102990.0,102980.0,0.19424]
[1738177079391,0.19424,102980.0,102970.0,0.256052]
[1738177079694,0.19424,102980.0,102970.0,0.306052]
[1738177079881,0.55504,102980.0,102970.0,0.306052]
[1738177080687,0.55504,102980.0,102970.0,0.307052]
[1738177080883,0.55504,102980.0,102970.0,0.001]
[1738177081086,0.61914,102980.0,102970.0,0.001]
[1738177081798,0.61914,102980.0,102970.0,0.005]
[1738177085200,0.61914,102980.0,102970.0,0.002]
[1738177085389,0.61914,102980.0,102970.0,0.001]
[1738177086492,0.61914,102980.0,102970.0,0.245259]
[1738177086798,0.61914,102980.0,102970.0,0.195259]
[1738177088297,0.61914,102980.0,102970.0,0.235259]
[1738177088503,0.55504,102980.0,102970.0,0.235259]
[1738177088693,0.55504,102980.0,102970.0,0.265559]
[1738177089300,0.55504,102980.0,102970.0,0.001]
[1738177089503,0.58584,102980.0,102970.0,0.001]
[1738177089998,0.58584,102980.0,102970.0,0.061]
[1738177090202,0.58584,102980.0,102970.0,0.001]
[1738177090395,0.61614,102980.0,102970.0,0.001]
[1738177090992,0.58584,102980.0,102970.0,0.245259]
[1738177091498,0.58584,102980.0,102970.0,0.277059]
[1738177092309,0.58584,102980.0,102970.0,0.0828]
[1738177092604,0.58584,102980.0,102970.0,0.001]
[1738177093494,0.61684,102980.0,102970.0,0.001]
[1738177095705,0.61784,102980.0,102970.0,0.001]
[1738177096704,0.194259,102970.0,102960.0,0.00014613]
[1738177096895,0.587759,102970.0,102960.0,0.00014613]
[1738177101602,0.59954584,102970.0,102960.0,0.00014613]
[1738177102308,0.59954584,102970.0,102960.0,0.19442413]
[1738177102607,0.587759,102970.0,102960.0,0.24442413]
[1738177103706,0.587759,102970.0,102960.0,0.19442413]
[1738177104401,0.587759,102970.0,102960.0,0.04014613]
[1738177104603,0.587759,102970.0,102960.0,0.00014613]
[1738177111903,0.194296,102950.0,102940.0,0.0303]
[1738177112205,0.194296,102950.0,102940.0,0.28647672]
[1738177112414,0.555096,102950.0,102940.0,0.28647672]
[1738177112908,0.555096,102950.0,102940.0,0.23647672]
[1738177113314,0.556096,102950.0,102940.0,0.24547672]
[1738177113507,0.556096,102950.0,102940.0,0.25047672]
[1738177114603,0.556096,102950.0,102940.0,0.02586172]
[1738177114803,0.588896,102950.0,102940.0,0.02586172]
[1738177121720,0.228096,102950.0,102940.0,0.34017672]
[1738177121914,0.195296,102950.0,102940.0,0.34017672]
[1738177122117,0.195296,102950.0,102940.0,0.40497672]
[1738177122311,0.556096,102950.0,102940.0,0.37297672]
[1738177123418,0.556096,102950.0,102940.0,0.36797672]
[1738177123723,0.555096,102950.0,102940.0,0.35897672]
[1738177124221,0.555096,102950.0,102940.0,0.35997672]
[1738177124405,0.555096,102950.0,102940.0,0.36297672]
[1738177126511,0.61833513,102960.0,102950.0,0.194296]
[1738177126819,0.61833513,102960.0,102950.0,0.314296]
[1738177126820,0.58653513,102960.0,102950.0,0.314296]
[1738177128517,0.58653513,102960.0,102940.0,0.04466172]
[1738177128518,0.39224613,102960.0,102940.0,0.04466172]
[1738177128720,0.194297,102950.0,102940.0,0.43896372]
[1738177130525,0.194297,102950.0,102940.0,0.43996372]
[1738177130721,0.194297,102950.0,102940.0,0.44296372]
[1738177131618,0.61703313,102960.0,102950.0,0.194296]
[1738177131818,0.61703313,102960.0,102950.0,0.244296]
[1738177132322,0.61703313,102960.0,102950.0,0.194296]
[1738177132828,0.61703313,102960.0,102950.0,0.244296]
[1738177133825,0.61703313,102960.0,102950.0,0.194296]
[1738177135118,0.61703313,102960.0,102950.0,0.244296]
[1738177135530,0.58653313,102960.0,102950.0,0.244296]
[1738177135725,0.58653313,102960.0,102950.0,0.194296]
[1738177136632,0.58653313,102960.0,102950.0,0.244296]
[1738177140328,0.194297,102950.0,102940.0,0.23896972]
[1738177140527,0.194297,102950.0,102940.0,0.43896972]
[1738177141439,0.555097,102950.0,102940.0,0.21186172]
[1738177141729,0.585397,102950.0,102940.0,0.21186172]
[1738177142333,0.585397,102950.0,102940.0,0.2]
[1738177142533,0.194315,102940.0,102930.0,0.00014613]
[1738177142735,0.619115,102940.0,102930.0,0.00014613]
[1738177142939,0.194334,102930.0,102920.0,0.00145742]
[1738177143134,0.555134,102930.0,102920.0,0.00145742]
[1738177143832,0.3937,102930.0,102910.0,0.01153471]
[1738177144134,0.586553,102920.0,102910.0,0.01153471]
[1738177144323,0.586553,102920.0,102910.0,0.00026671]
[1738177146232,0.586553,102920.0,102910.0,0.00526671]
[1738177146531,0.586553,102920.0,102910.0,0.00514613]
[1738177146726,0.586553,102920.0,102910.0,0.01414613]
[1738177147128,0.586553,102920.0,102910.0,0.00514613]
[1738177147331,0.587553,102920.0,102910.0,0.01414613]
[1738177149336,0.588553,102920.0,102910.0,0.00914613]
[1738177150539,0.590553,102920.0,102910.0,0.00014613]
[1738177150734,0.620753,102920.0,102910.0,0.00014613]
[1738177151235,0.0656,102920.0,102910.0,0.00014613]
[1738177151443,0.004,102920.0,102910.0,0.23451813]
[1738177151938,0.004,102920.0,102910.0,0.21451813]
[1738177152141,0.004,102920.0,102910.0,0.23451813]
[1738177152343,0.003,102920.0,102910.0,0.23451813]
[1738177152531,0.003,102920.0,102910.0,0.56451813]
[1738177152734,0.003,102920.0,102910.0,0.59531813]
[1738177152934,0.00014613,102930.0,102920.0,0.194353]
[1738177153237,0.3608,102950.0,102920.0,0.581]
[1738177153436,0.3608,102950.0,102930.0,0.555127]
[1738177153632,0.3608,102950.0,102930.0,0.665127]
[1738177153839,0.3608,102950.0,102930.0,0.695627]
[1738177154434,0.36094613,102950.0,102930.0,0.695627]
[1738177155233,0.36094613,102950.0,102930.0,0.334827]
[1738177155533,0.36094613,102950.0,102940.0,0.194315]
[1738177156540,0.36094613,102950.0,102940.0,0.198315]
[1738177158039,0.00014613,102950.0,102940.0,0.599115]
[1738177158442,0.00014613,102950.0,102940.0,0.600115]
[1738177158643,0.00014613,102950.0,102940.0,0.199315]
[1738177158842,0.36094613,102950.0,102940.0,0.005]
[1738177159232,0.00014613,102950.0,102940.0,0.005]
[1738177161142,0.36094613,102950.0,102940.0,0.005]
[1738177162145,0.36094613,102950.0,102940.0,0.01596987]
[1738177162342,0.00014613,102950.0,102940.0,0.01596987]
[1738177162536,0.00014613,102950.0,102940.0,0.21029687]
[1738177163248,0.00014613,102950.0,102940.0,0.32629687]
[1738177163641,0.00014613,102950.0,102940.0,0.32529687]
[1738177163941,0.00014613,102950.0,102940.0,0.32629687]
[1738177164142,0.06264613,102950.0,102940.0,0.32629687]
[1738177165641,0.09324613,102950.0,102940.0,0.32629687]
[1738177166953,0.09324613,102950.0,102940.0,0.20629687]
[1738177167146,0.09324613,102950.0,102940.0,0.26629687]
[1738177167341,0.64836213,102950.0,102940.0,0.01196987]
[1738177167550,0.45404613,102950.0,102940.0,0.001]
[1738177168753,0.42344613,102950.0,102940.0,0.001]
[1738177174758,0.61776213,102950.0,102940.0,0.001]
[1738177174959,0.65036213,102950.0,102940.0,0.001]
[1738177177668,0.194334,102940.0,102930.0,0.00014613]
[1738177177868,0.555134,102940.0,102930.0,0.00014613]
[1738177179162,0.557134,102940.0,102930.0,0.00014613]
[1738177179371,0.558134,102940.0,102930.0,0.00014613]
[1738177182568,0.556134,102940.0,102930.0,0.00014613]
[1738177182769,0.558134,102940.0,102930.0,0.00014613]
[1738177183171,0.556134,102940.0,102930.0,0.00014613]
[1738177183374,0.558134,102940.0,102930.0,0.00014613]
[1738177184069,0.557134,102940.0,102930.0,0.00014613]
[1738177184269,0.556134,102940.0,102930.0,0.00014613]
[1738177184563,0.558134,102940.0,102930.0,0.00014613]
[1738177185271,0.3638,102940.0,102930.0,0.00014613]
[1738177185776,0.3618,102940.0,102930.0,0.00014613]
[1738177186077,0.3638,102940.0,102930.0,0.00014613]
[1738177187569,0.3638,102940.0,102930.0,0.01106999]
[1738177187768,0.3638,102940.0,102930.0,0.00014613]
[1738177189069,0.3608,102940.0,102930.0,0.00014613]
[1738177189270,0.3608,102940.0,102930.0,0.00114613]
[1738177191573,0.45604613,102950.0,102930.0,0.0121867]
[1738177191982,0.09524613,102950.0,102930.0,0.0121867]
[1738177192286,0.09524613,102950.0,102930.0,0.0421867]
[1738177192470,0.09524613,102950.0,102930.0,0.0723867]
[1738177192671,0.3608,102940.0,102930.0,0.06034613]
[1738177193484,0.3608,102940.0,102930.0,0.00014613]
[1738177193780,0.3608,102940.0,102930.0,0.00114613]
[1738177196180,0.7216,102940.0,102930.0,0.00114613]
[1738177196479,0.3608,102930.0,102860.0,0.3608]
[1738177196668,0.3608,102930.0,102860.0,0.0325]
[1738177196669,0.3608,102870.0,102860.0,0.0325]
[1738177196873,0.3608,102870.0,102850.0,0.0312]
[1738177197175,0.3608,102860.0,102850.0,0.0312]
[1738177197578,0.3608,102860.0,102850.0,0.03134613]
[1738177198279,0.3608,102860.0,102850.0,0.04034613]
[1738177198978,0.00114613,102870.0,102850.0,0.59564013]
[1738177199188,0.36194613,102870.0,102850.0,0.23484013]
[1738177199577,0.001,102860.0,102850.0,0.60464013]
[1738177199773,0.001,102860.0,102850.0,0.24384013]
[1738177200074,0.36194613,102870.0,102850.0,0.59564013]
[1738177200272,0.3608,102860.0,102850.0,0.04934613]
[1738177200477,0.556287,102860.0,102830.0,6.949e-05]
[1738177200779,0.556287,102860.0,102800.0,0.1]
[1738177200780,0.7216,102840.0,102800.0,0.1]
[1738177200985,0.916181,102810.0,102800.0,0.1]
[1738177201182,0.7216,102810.0,102800.0,0.1]
[1738177201385,0.3608,102820.0,102800.0,0.1]
[1738177201574,0.0332,102830.0,102800.0,0.4608]
[1738177201778,0.0641,102840.0,102820.0,0.3608]
[1738177201976,0.001,102860.0,102830.0,0.3608]
[1738177202178,0.001,102860.0,102850.0,0.3608]
[1738177202375,0.001,102860.0,102830.0,0.03]
[1738177202376,0.194525,102840.0,102830.0,0.03]
[1738177202679,0.72166949,102840.0,102830.0,0.00014613]
[1738177202975,0.194581,102810.0,102800.0,1e-06]
[1738177203189,0.916181,102810.0,102800.0,1e-06]
[1738177203686,0.855381,102810.0,102800.0,1e-06]
[1738177203890,0.394,102810.0,102800.0,1e-06]
[1738177204186,0.394,102810.0,102790.0,9.74e-05]
[1738177204494,0.45,102790.0,102740.0,0.00011287]
[1738177204782,0.45,102790.0,102710.0,0.3608]
[1738177204783,0.3608,102780.0,102750.0,0.555486]
[1738177204984,0.555438,102780.0,102760.0,0.3608]
[1738177205188,1.005447,102780.0,102740.0,0.3608]
[1738177205385,0.3608,102770.0,102730.0,0.3608]
[1738177205680,0.3608,102770.0,102700.0,1.59055591]
[1738177205681,0.194771,102710.0,102700.0,1.59055591]
[1738177205884,0.194828,102680.0,102670.0,2.14882855]
[1738177206074,0.194828,102680.0,102670.0,2.14774855]
[1738177206075,0.55569749,102680.0,102670.0,2.14774855]
[1738177206280,0.194847,102670.0,102660.0,0.00011554]
[1738177206480,0.194874,102660.0,102640.0,2.06235126]
[1738177206683,1.1108,102680.0,102600.0,2.44986893]
[1738177206684,0.3608,102620.0,102600.0,2.44986893]
[1738177206882,0.916561,102610.0,102590.0,0.47243847]
[1738177207083,0.195033,102580.0,102540.0,2.29272632]
[1738177207285,0.3608,102560.0,102540.0,2.29156632]
[1738177207481,7.747e-05,102550.0,102540.0,2.38911483]
[1738177207678,7.747e-05,102550.0,102540.0,2.65244895]
[1738177207880,0.5558,102590.0,102540.0,0.3608]
[1738177208082,0.4012,102600.0,102560.0,0.65308]
[1738177208291,0.00014613,102560.0,102550.0,0.3608]
[1738177208585,0.00014613,102560.0,102550.0,0.63908]
[1738177208785,0.4244,102610.0,102550.0,0.63908]
[1738177208786,0.01,102610.0,102550.0,0.63908]
[1738177208993,0.0636,102660.0,102600.0,1.00388]
[1738177209285,0.3608,102650.0,102620.0,0.28228]
[1738177209483,0.194961,102610.0,102600.0,0.49306299]
[1738177209687,0.00014613,102640.0,102610.0,0.142023]
[1738177209881,0.0304,102670.0,102630.0,0.3608]
[1738177210083,0.3912,102670.0,102660.0,0.88]
[1738177210382,0.195047,102570.0,102550.0,0.11705834]
[1738177210688,0.55594416,102560.0,102550.0,0.01956981]
[1738177211086,0.3608,102580.0,102550.0,0.52239281]
[1738177211286,0.00014613,102570.0,102560.0,0.3608]
[1738177211491,0.01,102610.0,102600.0,0.32635946]
[1738177211686,0.01065978,102630.0,102600.0,0.85297946]
[1738177211887,0.2320311,102660.0,102620.0,0.49217946]
[1738177212094,0.194913,102640.0,102620.0,0.13137946]
[1738177212287,0.66458225,102670.0,102630.0,0.31532385]
[1738177212481,0.65422216,102670.0,102660.0,0.3608]
[1738177212683,0.63418225,102670.0,102660.0,0.49217946]
[1738177212879,0.1,102700.0,102660.0,0.49217946]
[1738177213078,0.1,102700.0,102690.0,0.85297946]
[1738177213380,0.2320311,102720.0,102690.0,0.49217946]
[1738177213581,0.2320311,102720.0,102710.0,0.49217946]
[1738177213981,0.3608,102740.0,102700.0,0.3708]
[1738177214188,0.555565,102720.0,102700.0,0.10973946]
[1738177214486,0.36094613,102730.0,102710.0,0.10973946]
[1738177214792,0.005,102720.0,102710.0,0.10973946]
[1738177215096,0.005,102720.0,102700.0,0.00014613]
[1738177215294,0.555571,102710.0,102700.0,0.00014613]
[1738177215791,0.555571,102710.0,102690.0,0.01952002]
[1738177215991,0.3608,102700.0,102670.0,0.3608]
[1738177216199,0.3608,102710.0,102680.0,0.30456546]
[1738177216400,0.559559,102720.0,102690.0,0.10973946]
[1738177216690,0.559559,102720.0,102680.0,0.66536546]
[1738177216691,0.3608,102710.0,102680.0,0.66536546]
[1738177216901,0.3608,102690.0,102670.0,0.3608]
[1738177217089,0.3608,102690.0,102660.0,0.21437802]
[1738177217090,0.3608,102680.0,102660.0,0.01952002]
[1738177217393,0.3638,102710.0,102680.0,0.19481]
[1738177217587,0.3638,102710.0,102690.0,0.555601]
[1738177217894,0.555571,102710.0,102680.0,0.10973946]
[1738177218091,0.3608,102700.0,102680.0,0.47053946]
[1738177218391,0.3608,102700.0,102660.0,0.3608]
[1738177218593,0.3608,102690.0,102680.0,0.00014613]
[1738177218792,0.555607,102690.0,102680.0,0.00014613]
[1738177218986,0.555607,102690.0,102610.0,0.194952]
[1738177218987,0.194878,102660.0,102610.0,0.194952]
[1738177219187,0.194878,102660.0,102620.0,0.47053946]
[1738177219188,0.55569,102650.0,102620.0,0.47053946]
[1738177219384,0.3608,102640.0,102620.0,0.10973946]
[1738177219683,0.3608,102630.0,102600.0,0.1]
[1738177219995,0.3608,102620.0,102600.0,0.57053946]
[1738177220185,0.3608,102630.0,102610.0,0.10973946]
[1738177220391,0.55587113,102630.0,102600.0,0.57053946]
[1738177220583,0.55587113,102630.0,102610.0,0.3608]
[1738177220783,0.194959,102610.0,102600.0,0.1]
[1738177220989,0.3608,102610.0,102570.0,0.3608]
[1738177221290,0.555761,102610.0,102590.0,0.10973946]
[1738177221495,0.3638,102630.0,102600.0,0.10973946]
[1738177221683,0.3638,102630.0,102610.0,0.10973946]
[1738177221885,0.003,102630.0,102610.0,0.47053946]
[1738177222199,0.00314613,102630.0,102620.0,0.47053946]
[1738177222389,0.59135495,102670.0,102620.0,0.66547946]
[1738177222588,0.3608,102640.0,102610.0,0.3608]
[1738177222785,0.555726,102630.0,102610.0,0.47053946]
[1738177222983,0.194926,102630.0,102610.0,0.47053946]
[1738177223194,0.194888,102650.0,102620.0,0.47053946]
[1738177223494,0.3608,102650.0,102620.0,0.3608]
[1738177223684,0.3608,102650.0,102620.0,0.00014613]
[1738177223685,0.3608,102630.0,102620.0,0.00014613]
[1738177223888,0.3608,102630.0,102620.0,0.10988559]
[1738177224086,0.3608,102630.0,102600.0,0.53902881]
[1738177224087,0.3638,102630.0,102600.0,0.53902881]
[1738177224998,0.3618,102630.0,102600.0,0.53902281]
[1738177225196,0.556731,102630.0,102600.0,0.53902281]
[1738177225391,0.001,102630.0,102610.0,0.555756]
[1738177225701,0.55686613,102630.0,102610.0,0.3608]
[1738177225898,0.00114613,102630.0,102610.0,0.555758]
[1738177226091,0.36194613,102630.0,102610.0,0.555758]
[1738177226502,0.36094613,102630.0,102610.0,0.555758]
[1738177226703,0.36294613,102630.0,102620.0,0.00035973]
[1738177226898,0.70468422,102630.0,102570.0,0.3608]
[1738177227195,0.70468422,102630.0,102560.0,0.3608]
[1738177227196,0.3608,102600.0,102560.0,0.3608]
[1738177227400,0.00012389,102590.0,102570.0,0.195029]
[1738177227591,0.194986,102600.0,102570.0,0.555829]
[1738177227996,0.00014613,102590.0,102570.0,0.555829]
[1738177228393,0.00014613,102590.0,102570.0,0.3608]
[1738177228592,0.00014613,102590.0,102580.0,0.3608]
[1738177228899,0.00014613,102590.0,102580.0,0.555815]
[1738177229297,0.555729,102630.0,102580.0,0.4608]
[1738177229499,0.555744,102620.0,102590.0,0.3608]
[1738177229706,0.555744,102620.0,102600.0,0.3608]
[1738177230006,9.979e-05,102610.0,102600.0,0.555773]
[1738177230189,0.00012401,102610.0,102600.0,0.555773]
[1738177230799,0.3608,102610.0,102590.0,0.36094613]
[1738177230999,0.555777,102600.0,102590.0,0.00014613]
[1738177231398,0.3608,102590.0,102550.0,0.0329]
[1738177231598,0.195072,102550.0,102530.0,0.3935]
[1738177231804,0.3608,102570.0,102530.0,0.3608]
[1738177231989,0.195069,102560.0,102530.0,0.555905]
[1738177232196,0.555837,102570.0,102550.0,0.195064]
[1738177232508,0.3608,102580.0,102550.0,0.555872]
[1738177232509,9.396e-05,102560.0,102550.0,0.555872]
[1738177232903,0.55726075,102590.0,102550.0,0.555872]
[1738177232904,0.00146375,102590.0,102550.0,0.7108]
[1738177233209,0.555829,102580.0,102560.0,0.0315]
[1738177233397,0.555834,102570.0,102560.0,0.0315]
[1738177233794,0.195072,102550.0,102520.0,0.55738291]
[1738177234098,0.19647175,102590.0,102540.0,0.81909439]
[1738177234408,0.195028,102580.0,102560.0,0.3608]
[1738177234606,0.195034,102570.0,102560.0,0.3608]
[1738177234793,0.3608,102570.0,102530.0,0.3608]
[1738177235106,0.855834,102570.0,102560.0,1.3e-07]
[1738177235302,0.916634,102570.0,102560.0,1.3e-07]
[1738177235507,0.195082,102550.0,102540.0,0.3608]
[1738177235700,0.195082,102550.0,102530.0,0.555903]
[1738177236006,0.195091,102540.0,102530.0,0.3608]
[1738177236301,0.00146416,102550.0,102530.0,0.3608]
[1738177236507,0.00146416,102550.0,102540.0,0.555891]
[1738177236694,0.00155523,102550.0,102540.0,0.555891]
[1738177236904,0.00170136,102550.0,102540.0,0.555891]
[1738177237095,0.00161029,102550.0,102540.0,0.555891]
[1738177237300,0.00170136,102550.0,102540.0,0.555891]
[1738177237596,0.00146375,102590.0,102560.0,0.195038]
[1738177237801,0.19645975,102590.0,102580.0,0.3608]
[1738177238004,0.00146375,102590.0,102580.0,0.7216]
[1738177238205,0.19645975,102590.0,102580.0,0.7216]
[1738177238405,0.194944,102620.0,102590.0,0.194988]
[1738177238599,0.51281393,102630.0,102610.0,0.3608]
[1738177238801,0.51281393,102630.0,102620.0,0.555739]
[1738177239204,0.51281393,102630.0,102620.0,1.14105775]
[1738177239205,0.00014613,102630.0,102620.0,1.14105775]
[1738177239505,0.194909,102640.0,102620.0,0.916533]
[1738177239711,0.28531875,102670.0,102630.0,0.3608]
[1738177239911,0.194876,102660.0,102650.0,0.3608]
[1738177240208,0.19629118,102680.0,102650.0,0.7216]
[1738177240418,0.19629118,102680.0,102670.0,0.3608]
[1738177240712,0.19629118,102680.0,102660.0,0.555657]
[1738177240913,0.005,102670.0,102650.0,0.3608]
[1738177241098,0.194872,102660.0,102640.0,0.3608]
[1738177241302,0.65111875,102670.0,102630.0,0.555714]
[1738177241512,0.555662,102660.0,102650.0,0.00014613]
[1738177241903,0.55580813,102660.0,102650.0,1.3e-07]
[1738177242105,0.85580813,102660.0,102650.0,1.3e-07]
[1738177242306,0.194913,102640.0,102620.0,0.3608]
[1738177242506,0.36094613,102660.0,102610.0,0.3608]
[1738177242705,0.409519,102650.0,102600.0,0.36226193]
[1738177242915,0.3608,102650.0,102610.0,0.194954]
[1738177243223,0.3608,102620.0,102580.0,0.00010188]
[1738177243405,0.555792,102590.0,102580.0,0.00010188]
[1738177244013,0.555792,102590.0,102570.0,0.00014613]
[1738177244014,0.3608,102590.0,102570.0,0.00014613]
[1738177244314,0.3608,102600.0,102570.0,0.36094613]
[1738177244515,0.36094613,102600.0,102580.0,0.3608]
[1738177244813,0.19511413,102600.0,102580.0,0.555794]
[1738177245019,0.00014613,102600.0,102590.0,0.3608]
[1738177245203,0.00014613,102600.0,102590.0,0.555779]
[1738177246411,0.00214613,102600.0,102590.0,0.555779]
[1738177246913,0.00214613,102600.0,102580.0,0.3608]
[1738177246914,0.194979,102590.0,102580.0,0.3608]
[1738177247216,0.36294613,102600.0,102570.0,0.00014613]
[1738177247419,0.194998,102580.0,102570.0,0.00014613]
[1738177247611,0.194998,102580.0,102570.0,0.36094613]
[1738177247811,0.194998,102580.0,102570.0,0.00014613]
[1738177248815,0.194998,102580.0,102570.0,0.36094613]
[1738177249413,0.194985,102590.0,102570.0,0.55596013]
[1738177249612,0.194985,102590.0,102580.0,0.3608]
[1738177249917,0.51313848,102600.0,102590.0,0.194978]
[1738177250218,0.51313848,102600.0,102590.0,0.555778]
[1738177250713,0.70809748,102600.0,102590.0,0.3608]
[1738177250915,0.19510513,102600.0,102590.0,0.3608]
[1738177251118,0.194997,102580.0,102570.0,0.36094613]
[1738177251416,0.555797,102580.0,102570.0,0.00014613]
[1738177251814,0.194997,102580.0,102570.0,0.36094613]
[1738177252012,0.555797,102580.0,102570.0,0.00014613]
[1738177252315,0.194997,102580.0,102570.0,0.00014613]
[1738177252516,0.194997,102580.0,102570.0,0.36094613]
[1738177252716,0.194983,102590.0,102570.0,0.46094613]
[1738177252911,0.69048921,102590.0,102580.0,0.3608]
[1738177253111,0.69048921,102590.0,102580.0,0.555797]
[1738177253517,0.69048921,102590.0,102580.0,0.3608]
[1738177253921,0.69048921,102590.0,102580.0,0.645797]
[1738177253922,0.49550621,102590.0,102580.0,0.645797]
[1738177254115,0.49550621,102590.0,102580.0,0.945797]
[1738177254311,0.00014613,102600.0,102580.0,0.7508]
[1738177254508,0.00014613,102600.0,102590.0,0.555778]
[1738177255018,0.00014613,102600.0,102580.0,0.3608]
[1738177255019,0.194978,102590.0,102580.0,0.555797]
[1738177255225,0.001,102590.0,102580.0,0.3608]
[1738177255523,0.194997,102580.0,102570.0,0.00014613]
[1738177256120,0.194997,102580.0,102570.0,0.36094613]
[1738177256419,0.194982,102590.0,102570.0,0.55595413]
[1738177256617,0.00214613,102600.0,102590.0,0.194978]
[1738177256813,0.00014613,102600.0,102590.0,0.765778]
[1738177257009,0.00014613,102600.0,102590.0,0.645778]
[1738177257814,0.00014613,102600.0,102590.0,0.555778]
[1738177258115,0.00014613,102600.0,102570.0,0.36094613]
[1738177258320,0.19510913,102600.0,102580.0,0.555784]
[1738177258824,0.19711613,102600.0,102580.0,0.555784]
[1738177260019,0.00214613,102600.0,102590.0,0.3608]
[1738177260224,0.00214613,102600.0,102590.0,0.555778]
[1738177260417,0.19711613,102600.0,102580.0,0.555794]
[1738177260613,0.19711613,102600.0,102580.0,0.605794]
[1738177260817,0.19711613,102600.0,102590.0,0.194978]
[1738177261019,0.00214613,102600.0,102590.0,0.555778]
[1738177261425,0.19710513,102600.0,102580.0,0.555793]
[1738177261616,0.19510513,102600.0,102580.0,0.555793]
[1738177261929,0.00214613,102600.0,102590.0,0.555778]
[1738177262223,0.37571538,102620.0,102610.0,0.19494]
[1738177262422,0.33873857,102620.0,102610.0,1.12654]
[1738177262823,0.33873857,102620.0,102610.0,1.42654]
[1738177263525,0.3608,102670.0,102630.0,0.194885]
[1738177263717,0.194898,102640.0,102620.0,0.555717]
[1738177263926,0.194898,102640.0,102620.0,0.555713]
[1738177264423,0.194898,102640.0,102630.0,0.194902]
[1738177264827,0.03294613,102660.0,102650.0,0.194864]
[1738177265023,0.00014613,102660.0,102650.0,0.916464]
[1738177265214,0.00014613,102660.0,102630.0,0.30840634]
[1738177265215,0.00014613,102660.0,102630.0,0.45823739]
[1738177265419,0.00014613,102660.0,102640.0,0.555674]
[1738177265420,0.19499913,102660.0,102640.0,0.555674]
[1738177265615,0.194887,102640.0,102620.0,1.14048863]
[1738177265923,0.55579413,102660.0,102630.0,0.3608]
[1738177266232,0.555664,102650.0,102640.0,0.00014613]
[1738177266420,0.76662034,102650.0,102640.0,0.00014613]
[1738177266626,0.03274613,102660.0,102640.0,0.19502913]
[1738177266823,0.03274613,102660.0,102650.0,0.194864]
[1738177267019,0.00014613,102660.0,102650.0,0.194864]
[1738177267520,0.00014613,102660.0,102650.0,0.605664]
[1738177267722,0.00014613,102660.0,102650.0,0.905664]
[1738177267923,0.00214613,102660.0,102650.0,0.905664]
[1738177268229,0.1,102700.0,102690.0,0.194788]
[1738177268524,0.294783,102700.0,102680.0,0.3608]
[1738177268726,0.4608,102700.0,102660.0,0.36226113]
[1738177268925,0.1,102700.0,102690.0,0.194788]
[1738177269226,0.1,102700.0,102690.0,0.555588]
[1738177269432,0.0427,102700.0,102690.0,1.10654434]
[1738177269730,0.0477,102700.0,102690.0,1.30882469]
[1738177269930,0.00014613,102710.0,102690.0,1.30882469]
[1738177270223,0.194658,102760.0,102700.0,0.94392]
[1738177270430,0.73012609,102770.0,102740.0,0.3608]
[1738177270628,0.56396509,102770.0,102750.0,0.194673]
[1738177270827,0.56396509,102770.0,102760.0,0.194655]
[1738177270828,0.36932609,102770.0,102760.0,0.194655]
[1738177271032,0.36932609,102770.0,102760.0,0.76641134]
[1738177271229,0.1,102800.0,102760.0,1.11092217]
[1738177271537,1.03971487,102810.0,102800.0,0.19458]
[1738177271731,0.80590487,102810.0,102800.0,0.55538]
[1738177271921,0.60445268,102810.0,102800.0,0.96403485]
[1738177272121,0.00014613,102820.0,102800.0,0.76945485]
[1738177272322,0.43474676,102830.0,102810.0,0.57175634]
[1738177272528,0.3608,102890.0,102810.0,0.57175634]
[1738177272529,0.1,102900.0,102870.0,0.194445]
[1738177272826,0.1,102900.0,102890.0,1.12696634]
[1738177273029,0.1,102900.0,102890.0,0.3608]
[1738177273331,0.4608,102900.0,102860.0,0.36225831]
[1738177273625,0.18697908,102840.0,102830.0,0.21106227]
[1738177273834,0.54777908,102840.0,102830.0,0.00010593]
[1738177274029,0.3608,102860.0,102830.0,0.00010593]
[1738177274327,0.194504,102840.0,102830.0,0.09729238]
[1738177274535,0.194504,102840.0,102790.0,0.57321573]
[1738177274536,0.3608,102840.0,102790.0,0.57321573]
[1738177274738,0.3608,102830.0,102800.0,0.3608]
[1738177274930,0.3608,102860.0,102820.0,0.3608]
[1738177275233,0.3608,102840.0,102820.0,0.55534]
[1738177275432,0.00010593,102830.0,102820.0,0.55534]
[1738177275639,0.001,102840.0,102820.0,1.33884788]
[1738177275933,0.3608,102880.0,102850.0,0.194469]
[1738177276123,0.3608,102880.0,102850.0,0.555269]
[1738177276323,0.555283,102860.0,102820.0,0.3608]
[1738177276518,0.3608,102870.0,102820.0,0.008]